[Event "*** Titled Tuesday Blitz"]
[Site "Chess.com"]
[Date "2020.03.03"]
[Round "1"]
[White "Aleksey_Sorokin"]
[Black "Gogolev_Artemy"]
[Result "1-0"]
[WhiteElo "2852"]
[BlackElo "2473"]
[TimeControl "180+1"]
[EndTime "13:07:51 PST"]
[Termination "Aleksey_Sorokin won by resignation"]

1. d4 {[%clk 0:03:00.9]} 1... Nf6 {[%clk 0:02:57.3]} 2. c4 {[%clk 0:03:01]} 2...
e6 {[%clk 0:02:57.2]} 3. Nf3 {[%clk 0:03:01.1]} 3... d5 {[%clk 0:02:53.8]} 4.
Nc3 {[%clk 0:03:01.3]} 4... dxc4 {[%clk 0:02:49.4]} 5. e3 {[%clk 0:02:59.7]}
5... c5 {[%clk 0:02:49]} 6. Bxc4 {[%clk 0:02:59.3]} 6... a6 {[%clk 0:02:48.6]}
7. a4 {[%clk 0:02:56.6]} 7... Nc6 {[%clk 0:02:48.1]} 8. O-O {[%clk 0:02:54.5]}
8... cxd4 {[%clk 0:02:47.9]} 9. exd4 {[%clk 0:02:54.1]} 9... Be7 {[%clk
0:02:48]} 10. Qe2 {[%clk 0:02:50.8]} 10... O-O {[%clk 0:02:47.9]} 11. Rd1 {[%clk
0:02:50.7]} 11... Nb4 {[%clk 0:02:44.2]} 12. Ne5 {[%clk 0:02:45.5]} 12... Nbd5
{[%clk 0:02:40.5]} 13. Bd2 {[%clk 0:02:38.8]} 13... Bd7 {[%clk 0:02:38]} 14.
Nxd5 {[%clk 0:02:31.8]} 14... Nxd5 {[%clk 0:02:33.4]} 15. Bxd5 {[%clk
0:02:31.7]} 15... exd5 {[%clk 0:02:32.7]} 16. Qf3 {[%clk 0:02:31.9]} 16... Be6
{[%clk 0:02:29.5]} 17. Qb3 {[%clk 0:02:32]} 17... Rb8 {[%clk 0:02:23.9]} 18.
Rdc1 {[%clk 0:02:25.2]} 18... Bd6 {[%clk 0:01:58.2]} 19. Bf4 {[%clk 0:02:16.5]}
19... h5 {[%clk 0:01:48]} 20. Nd3 {[%clk 0:02:14.8]} 20... h4 {[%clk 0:01:40.7]}
21. Bxd6 {[%clk 0:02:13.8]} 21... Qxd6 {[%clk 0:01:41.6]} 22. Qb4 {[%clk
0:02:11.2]} 22... Qxb4 {[%clk 0:01:30.4]} 23. Nxb4 {[%clk 0:02:11.2]} 23... Rfc8
{[%clk 0:01:30.8]} 24. Kf1 {[%clk 0:02:06.9]} 24... Kf8 {[%clk 0:01:28.1]} 25.
Ke2 {[%clk 0:01:57.4]} 25... Ke7 {[%clk 0:01:25.7]} 26. Kd2 {[%clk 0:01:57.4]}
26... a5 {[%clk 0:01:22.2]} 27. Nd3 {[%clk 0:01:56]} 27... Kd6 {[%clk 0:01:21]}
28. b3 {[%clk 0:01:52.2]} 28... f6 {[%clk 0:01:18.9]} 29. Rc5 {[%clk 0:01:46.5]}
29... b6 {[%clk 0:01:18.4]} 30. Rxc8 {[%clk 0:01:39.7]} 30... Rxc8 {[%clk
0:01:19.3]} 31. Rc1 {[%clk 0:01:40.1]} 31... g5 {[%clk 0:01:17.5]} 32. g3 {[%clk
0:01:36.4]} 32... Rxc1 {[%clk 0:01:13.7]} 33. Nxc1 {[%clk 0:01:34.9]} 33... Bg4
{[%clk 0:01:09.6]} 34. Na2 {[%clk 0:01:30.3]} 34... Bd7 {[%clk 0:01:01.4]} 35.
Nc3 {[%clk 0:01:27.3]} 35... Ke6 {[%clk 0:01:00.7]} 36. Ke3 {[%clk 0:01:27.1]}
36... hxg3 {[%clk 0:00:55.7]} 37. fxg3 {[%clk 0:01:25]} 37... Bc6 {[%clk
0:00:54.7]} 38. Kf3 {[%clk 0:01:23.8]} 38... Kf5 {[%clk 0:00:53.5]} 39. h3
{[%clk 0:01:20]} 39... Kg6 {[%clk 0:00:51.8]} 40. Kf2 {[%clk 0:01:10.3]} 40...
Kh5 {[%clk 0:00:40.3]} 41. Nd1 {[%clk 0:01:09.7]} 41... Bd7 {[%clk 0:00:37.9]}
42. Kg2 {[%clk 0:01:05.5]} 42... Be6 {[%clk 0:00:35]} 43. g4+ {[%clk 0:00:59.5]}
43... Kg6 {[%clk 0:00:34.5]} 44. Ne3 {[%clk 0:00:59.9]} 44... Bf7 {[%clk
0:00:32.4]} 45. Kg3 {[%clk 0:01:00.2]} 45... Be6 {[%clk 0:00:32.7]} 46. h4
{[%clk 0:01:00.7]} 46... gxh4+ {[%clk 0:00:32.7]} 47. Kxh4 {[%clk 0:01:01.6]}
47... Kh6 {[%clk 0:00:32.4]} 48. Ng2 {[%clk 0:01:01.3]} 48... Bf7 {[%clk
0:00:29.9]} 49. Nf4 {[%clk 0:01:01.4]} 49... Kg7 {[%clk 0:00:30]} 50. Nh5+
{[%clk 0:01:00.3]} 50... Kg6 {[%clk 0:00:29.4]} 51. Ng3 {[%clk 0:01:00.3]} 51...
Be6 {[%clk 0:00:28.9]} 52. Ne2 {[%clk 0:00:59.5]} 52... f5 {[%clk 0:00:28.9]}
53. Nf4+ {[%clk 0:00:58.5]} 53... Kf6 {[%clk 0:00:28.9]} 54. g5+ {[%clk
0:00:56.2]} 54... Ke7 {[%clk 0:00:27.6]} 55. g6 {[%clk 0:00:55.6]} 55... Kf6
{[%clk 0:00:24.8]} 56. Nxe6 {[%clk 0:00:55.1]} 56... Kxe6 {[%clk 0:00:24.9]} 57.
Kg5 {[%clk 0:00:55.4]} 57... f4 {[%clk 0:00:22.8]} 58. Kxf4 {[%clk 0:00:55.6]}
58... Kf6 {[%clk 0:00:23.7]} 59. g7 {[%clk 0:00:56.5]} 59... Kxg7 {[%clk
0:00:24.1]} 60. Ke5 {[%clk 0:00:57.4]} 60... Kf7 {[%clk 0:00:25]} 61. Kxd5
{[%clk 0:00:58.3]} 61... Ke7 {[%clk 0:00:25.9]} 62. Kc6 {[%clk 0:00:58.7]} 62...
Ke6 {[%clk 0:00:26.8]} 63. Kxb6 {[%clk 0:00:58.8]} 1-0

[Event "*** Titled Tuesday Blitz"]
[Site "Chess.com"]
[Date "2020.03.03"]
[Round "1"]
[White "AlleyOoper"]
[Black "Enriquack"]
[Result "1-0"]
[WhiteElo "2605"]
[BlackElo "2152"]
[TimeControl "180+1"]
[EndTime "13:07:52 PST"]
[Termination "AlleyOoper won by resignation"]

1. d4 {[%clk 0:03:00.9]} 1... Nf6 {[%clk 0:02:59.4]} 2. Bf4 {[%clk 0:03:00.2]}
2... g6 {[%clk 0:02:57.2]} 3. Nc3 {[%clk 0:02:59.6]} 3... d5 {[%clk 0:02:56.4]}
4. e3 {[%clk 0:02:59.6]} 4... Bg7 {[%clk 0:02:56.5]} 5. h4 {[%clk 0:03:00.2]}
5... h5 {[%clk 0:02:49.1]} 6. Nf3 {[%clk 0:02:59.1]} 6... O-O {[%clk 0:02:48.1]}
7. Ne5 {[%clk 0:02:59]} 7... c5 {[%clk 0:02:47]} 8. Qd2 {[%clk 0:02:58]} 8...
Nc6 {[%clk 0:02:44]} 9. f3 {[%clk 0:02:57.5]} 9... Nd7 {[%clk 0:01:55.9]} 10.
Nxd5 {[%clk 0:02:36.2]} 10... Ndxe5 {[%clk 0:01:54.4]} 11. dxe5 {[%clk
0:02:33.7]} 11... Nxe5 {[%clk 0:01:53.9]} 12. O-O-O {[%clk 0:02:30.3]} 12... Be6
{[%clk 0:01:47.9]} 13. Bg5 {[%clk 0:02:25.1]} 13... Bxd5 {[%clk 0:01:27.5]} 14.
Qxd5 {[%clk 0:02:24.4]} 14... Qb6 {[%clk 0:00:56.1]} 15. Qb3 {[%clk 0:02:18.6]}
15... Qc7 {[%clk 0:00:55]} 16. c4 {[%clk 0:02:01.8]} 16... a6 {[%clk 0:00:42.6]}
17. Bf4 {[%clk 0:01:43.1]} 17... b5 {[%clk 0:00:41.7]} 18. Rd5 {[%clk
0:01:38.1]} 18... e6 {[%clk 0:00:36.8]} 19. Rd2 {[%clk 0:01:28]} 19... Rab8
{[%clk 0:00:26]} 20. cxb5 {[%clk 0:01:23.1]} 20... axb5 {[%clk 0:00:26.4]} 21.
Kb1 {[%clk 0:01:19.5]} 21... c4 {[%clk 0:00:24.8]} 22. Qb4 {[%clk 0:01:18]}
22... Rfd8 {[%clk 0:00:23.8]} 23. Rxd8+ {[%clk 0:01:15.3]} 23... Qxd8 {[%clk
0:00:21.2]} 24. Be2 {[%clk 0:01:13.8]} 24... Nd3 {[%clk 0:00:21.2]} 25. Qd6
{[%clk 0:00:39.3]} 25... Nxf4 {[%clk 0:00:20.7]} 26. Qxf4 {[%clk 0:00:27.2]}
26... Qd2 {[%clk 0:00:20.8]} 27. Qxb8+ {[%clk 0:00:27.4]} 27... Kh7 {[%clk
0:00:21]} 28. Qxb5 {[%clk 0:00:28]} 28... Qxe2 {[%clk 0:00:20.3]} 29. Rc1 {[%clk
0:00:26.3]} 29... Qd3+ {[%clk 0:00:19.3]} 30. Ka1 {[%clk 0:00:25.2]} 30... Qd2
{[%clk 0:00:19.2]} 31. Kb1 {[%clk 0:00:20.5]} 31... c3 {[%clk 0:00:18.7]} 32.
bxc3 {[%clk 0:00:18.7]} 32... Bxc3 {[%clk 0:00:18.3]} 33. Qb3 {[%clk 0:00:18.5]}
33... Bf6 {[%clk 0:00:16.6]} 34. Qc2 {[%clk 0:00:18]} 34... Qb4+ {[%clk
0:00:16.5]} 35. Qb3 {[%clk 0:00:18.4]} 35... Qd2 {[%clk 0:00:16.2]} 36. a3
{[%clk 0:00:18.7]} 36... Bxh4 {[%clk 0:00:14.6]} 37. Rc2 {[%clk 0:00:18.1]}
37... Qd1+ {[%clk 0:00:14.4]} 38. Rc1 {[%clk 0:00:17.4]} 38... Qd2 {[%clk
0:00:14.8]} 39. Rc2 {[%clk 0:00:14.7]} 39... Qd1+ {[%clk 0:00:14.7]} 40. Ka2
{[%clk 0:00:12.9]} 40... Bf6 {[%clk 0:00:14.3]} 41. Qc4 {[%clk 0:00:12.2]} 41...
Qa1+ {[%clk 0:00:14]} 42. Kb3 {[%clk 0:00:13.1]} 42... Kg7 {[%clk 0:00:13]} 43.
e4 {[%clk 0:00:11.4]} 43... h4 {[%clk 0:00:12.2]} 44. f4 {[%clk 0:00:11.7]}
44... Qb1+ {[%clk 0:00:11.6]} 45. Ka4 {[%clk 0:00:11.8]} 45... e5 {[%clk
0:00:10.9]} 46. f5 {[%clk 0:00:11.5]} 46... g5 {[%clk 0:00:10.8]} 47. Qb3 {[%clk
0:00:10]} 47... Qd1 {[%clk 0:00:10.1]} 48. Rc7 {[%clk 0:00:08.7]} 48... g4
{[%clk 0:00:09.6]} 49. Qxd1 {[%clk 0:00:07.1]} 1-0

[Event "*** Titled Tuesday Blitz"]
[Site "Chess.com"]
[Date "2020.03.03"]
[Round "1"]
[White "Gabrielian_Artur"]
[Black "guillembaches"]
[Result "1-0"]
[WhiteElo "2782"]
[BlackElo "2415"]
[TimeControl "180+1"]
[EndTime "13:07:53 PST"]
[Termination "Gabrielian_Artur won on time"]

1. e4 {[%clk 0:03:00.9]} 1... c5 {[%clk 0:02:59.6]} 2. Nf3 {[%clk 0:03:00.5]}
2... d6 {[%clk 0:02:59.3]} 3. d4 {[%clk 0:03:00.4]} 3... cxd4 {[%clk 0:03:00.2]}
4. Nxd4 {[%clk 0:03:00.8]} 4... Nf6 {[%clk 0:03:00.7]} 5. Nc3 {[%clk 0:03:00.6]}
5... a6 {[%clk 0:03:01.2]} 6. g3 {[%clk 0:03:01]} 6... e5 {[%clk 0:03:01.1]} 7.
Nde2 {[%clk 0:03:01.3]} 7... Be7 {[%clk 0:02:58]} 8. Bg2 {[%clk 0:03:01.4]} 8...
O-O {[%clk 0:02:58]} 9. O-O {[%clk 0:03:01.4]} 9... b5 {[%clk 0:02:57.6]} 10.
Nd5 {[%clk 0:03:00.6]} 10... Nxd5 {[%clk 0:02:41.7]} 11. Qxd5 {[%clk 0:02:59.8]}
11... Ra7 {[%clk 0:02:41.5]} 12. Be3 {[%clk 0:02:59.6]} 12... Be6 {[%clk
0:02:39.9]} 13. Qd2 {[%clk 0:02:57]} 13... Rd7 {[%clk 0:02:34]} 14. Nc3 {[%clk
0:02:56.2]} 14... Nc6 {[%clk 0:02:28]} 15. a4 {[%clk 0:02:54.5]} 15... Qb8
{[%clk 0:02:14.4]} 16. axb5 {[%clk 0:02:53.9]} 16... axb5 {[%clk 0:02:15.3]} 17.
Nd5 {[%clk 0:02:52.9]} 17... Bxd5 {[%clk 0:02:07.2]} 18. exd5 {[%clk 0:02:52.8]}
18... Nd4 {[%clk 0:02:07]} 19. Ra6 {[%clk 0:02:42.1]} 19... Nf5 {[%clk
0:01:50.2]} 20. Rfa1 {[%clk 0:02:14.8]} 20... Nxe3 {[%clk 0:01:47.1]} 21. Qxe3
{[%clk 0:02:14.8]} 21... f5 {[%clk 0:01:23.6]} 22. c3 {[%clk 0:01:41.1]} 22...
f4 {[%clk 0:01:17.5]} 23. Qe4 {[%clk 0:01:35.2]} 23... Bd8 {[%clk 0:01:00.3]}
24. Bh3 {[%clk 0:01:29.1]} 24... Rb7 {[%clk 0:00:47]} 25. Be6+ {[%clk
0:01:28.5]} 25... Kh8 {[%clk 0:00:47.1]} 26. Ra8 {[%clk 0:01:28.1]} 26... Qc7
{[%clk 0:00:46.9]} 27. g4 {[%clk 0:01:19.9]} 27... b4 {[%clk 0:00:44.3]} 28. c4
{[%clk 0:01:19.5]} 28... f3 {[%clk 0:00:38.9]} 29. Rc8 {[%clk 0:01:16]} 29...
Qe7 {[%clk 0:00:38.1]} 30. Raa8 {[%clk 0:01:12.7]} 30... Ra7 {[%clk 0:00:33.9]}
31. Rxa7 {[%clk 0:00:25.2]} 31... Qxa7 {[%clk 0:00:34.8]} 32. Qxf3 {[%clk
0:00:24.2]} 32... Qe7 {[%clk 0:00:16]} 33. Qe3 {[%clk 0:00:20.5]} 33... Qf6
{[%clk 0:00:11.8]} 34. h3 {[%clk 0:00:18.7]} 34... h6 {[%clk 0:00:11.6]} 35. b3
{[%clk 0:00:18.6]} 35... Qe7 {[%clk 0:00:07.9]} 36. Kg2 {[%clk 0:00:18.5]} 36...
Kh7 {[%clk 0:00:06.6]} 37. Qe4+ {[%clk 0:00:17.2]} 37... Kh8 {[%clk 0:00:06.3]}
38. Qe3 {[%clk 0:00:16.3]} 38... Rf4 {[%clk 0:00:06.1]} 39. Bf5 {[%clk
0:00:15.5]} 39... g6 {[%clk 0:00:04.5]} 40. Bxg6 {[%clk 0:00:14.7]} 40... Kg7
{[%clk 0:00:04.6]} 41. Bf5 {[%clk 0:00:14.7]} 41... Kf6 {[%clk 0:00:01.5]} 42.
c5 {[%clk 0:00:14.7]} 42... h5 {[%clk 0:00:01.4]} 43. cxd6 {[%clk 0:00:14.5]}
43... Qf8 {[%clk 0:00:01.5]} 44. d7 {[%clk 0:00:11.3]} 44... hxg4 {[%clk
0:00:01.3]} 45. hxg4 {[%clk 0:00:11.4]} 45... Qh6 {[%clk 0:00:01.3]} 46. Rc6+
{[%clk 0:00:09.4]} 1-0

[Event "*** Titled Tuesday Blitz"]
[Site "Chess.com"]
[Date "2020.03.03"]
[Round "1"]
[White "Tayson_7"]
[Black "Vusatiuk_Vladimir"]
[Result "1-0"]
[WhiteElo "2702"]
[BlackElo "2347"]
[TimeControl "180+1"]
[EndTime "13:08:03 PST"]
[Termination "Tayson_7 won by resignation"]

1. e4 {[%clk 0:02:59.9]} 1... c5 {[%clk 0:03:00]} 2. Nf3 {[%clk 0:02:58]} 2...
Nc6 {[%clk 0:02:59.6]} 3. d4 {[%clk 0:02:58]} 3... cxd4 {[%clk 0:03:00.4]} 4.
Nxd4 {[%clk 0:02:58.7]} 4... Nf6 {[%clk 0:03:01]} 5. Nc3 {[%clk 0:02:59.4]} 5...
e5 {[%clk 0:03:01.1]} 6. Ndb5 {[%clk 0:02:59.5]} 6... d6 {[%clk 0:03:01.5]} 7.
Bg5 {[%clk 0:03:00]} 7... a6 {[%clk 0:03:01.8]} 8. Na3 {[%clk 0:03:00.6]} 8...
b5 {[%clk 0:03:02.4]} 9. Nd5 {[%clk 0:03:01.2]} 9... Be7 {[%clk 0:03:03]} 10.
Bxf6 {[%clk 0:03:01.8]} 10... Bxf6 {[%clk 0:03:03.5]} 11. c4 {[%clk 0:03:02.1]}
11... b4 {[%clk 0:03:03.6]} 12. Nc2 {[%clk 0:03:01.2]} 12... a5 {[%clk 0:03:04]}
13. g3 {[%clk 0:03:01.6]} 13... O-O {[%clk 0:03:01.8]} 14. h4 {[%clk 0:03:01.8]}
14... g6 {[%clk 0:03:00.2]} 15. Bh3 {[%clk 0:03:01.5]} 15... Be6 {[%clk
0:02:58]} 16. h5 {[%clk 0:03:00.3]} 16... Bxd5 {[%clk 0:02:49.4]} 17. cxd5
{[%clk 0:02:58.1]} 17... Nd4 {[%clk 0:02:48.4]} 18. hxg6 {[%clk 0:02:53.9]}
18... Nxc2+ {[%clk 0:02:44]} 19. Qxc2 {[%clk 0:02:53.3]} 19... hxg6 {[%clk
0:02:35.3]} 20. O-O {[%clk 0:02:42.1]} 20... Ra7 {[%clk 0:02:24.5]} 21. Qa4
{[%clk 0:02:32.9]} 21... Bg5 {[%clk 0:02:20.1]} 22. a3 {[%clk 0:02:32.5]} 22...
bxa3 {[%clk 0:02:16.8]} 23. Rxa3 {[%clk 0:02:32.4]} 23... Qc7 {[%clk 0:01:52]}
24. Rc3 {[%clk 0:02:29.6]} 24... Qb6 {[%clk 0:01:51.5]} 25. b3 {[%clk
0:02:27.8]} 25... Rc7 {[%clk 0:01:48.5]} 26. Rc6 {[%clk 0:02:24.8]} 26... Rxc6
{[%clk 0:01:41]} 27. dxc6 {[%clk 0:02:25.7]} 27... Ra8 {[%clk 0:01:17.8]} 28.
Rd1 {[%clk 0:02:18.7]} 28... Qc7 {[%clk 0:01:14]} 29. Rd5 {[%clk 0:02:09]} 29...
Be7 {[%clk 0:01:10.8]} 30. Rb5 {[%clk 0:02:05.9]} 30... Rb8 {[%clk 0:01:07.5]}
31. Qxa5 {[%clk 0:01:55.6]} 31... Bd8 {[%clk 0:00:59.1]} 32. Rxb8 {[%clk
0:00:56.8]} 32... Qxa5 {[%clk 0:00:49.4]} 33. b4 {[%clk 0:00:56.5]} 33... Qc7
{[%clk 0:00:29.3]} 34. Rc8 {[%clk 0:00:55.1]} 34... Qe7 {[%clk 0:00:29.7]} 35.
Rb8 {[%clk 0:00:22.5]} 35... Kg7 {[%clk 0:00:29.1]} 36. b5 {[%clk 0:00:21.6]}
36... Ba5 {[%clk 0:00:26.6]} 37. b6 {[%clk 0:00:21]} 37... Bxb6 {[%clk
0:00:08.2]} 38. Rxb6 {[%clk 0:00:20.3]} 38... Qc7 {[%clk 0:00:09.1]} 39. Ra6
{[%clk 0:00:20.7]} 39... f5 {[%clk 0:00:09.2]} 40. exf5 {[%clk 0:00:20.3]} 40...
gxf5 {[%clk 0:00:09.2]} 41. Bxf5 {[%clk 0:00:21.2]} 41... Kf6 {[%clk 0:00:09.5]}
42. Be4 {[%clk 0:00:20.8]} 42... Ke6 {[%clk 0:00:09]} 43. Bg2 {[%clk 0:00:20.1]}
43... d5 {[%clk 0:00:08.6]} 44. Bf1 {[%clk 0:00:18.9]} 44... e4 {[%clk
0:00:07.3]} 45. Ra2 {[%clk 0:00:19]} 45... d4 {[%clk 0:00:07.3]} 46. Ra4 {[%clk
0:00:18.5]} 46... Ke5 {[%clk 0:00:07]} 47. Rc4 {[%clk 0:00:18.1]} 47... d3
{[%clk 0:00:06.9]} 48. Kg2 {[%clk 0:00:18.4]} 48... Kd5 {[%clk 0:00:03.4]} 49.
Rc1 {[%clk 0:00:18.3]} 49... d2 {[%clk 0:00:03.2]} 50. Rd1 {[%clk 0:00:18.7]}
50... Qxc6 {[%clk 0:00:03.5]} 51. Rxd2+ {[%clk 0:00:19.2]} 51... Ke5 {[%clk
0:00:03.8]} 52. Re2 {[%clk 0:00:19.7]} 52... Kf5 {[%clk 0:00:03.4]} 53. Kg1
{[%clk 0:00:20]} 53... Ke5 {[%clk 0:00:03.5]} 54. Bg2 {[%clk 0:00:19.8]} 54...
Kf5 {[%clk 0:00:04.4]} 55. Bxe4+ {[%clk 0:00:19.1]} 55... Qxe4 {[%clk
0:00:05.3]} 56. Rxe4 {[%clk 0:00:19.5]} 56... Kxe4 {[%clk 0:00:06.2]} 57. Kg2
{[%clk 0:00:20]} 57... Kf5 {[%clk 0:00:06.5]} 58. f3 {[%clk 0:00:20.9]} 1-0

[Event "*** Titled Tuesday Blitz"]
[Site "Chess.com"]
[Date "2020.03.03"]
[Round "1"]
[White "CrushingKings"]
[Black "Atanejhad"]
[Result "0-1"]
[WhiteElo "2161"]
[BlackElo "2590"]
[TimeControl "180+1"]
[EndTime "13:08:03 PST"]
[Termination "Atanejhad won by resignation"]

1. e4 {[%clk 0:03:00.6]} 1... e5 {[%clk 0:02:59.5]} 2. Nf3 {[%clk 0:03:00]} 2...
Nc6 {[%clk 0:02:59.7]} 3. Bc4 {[%clk 0:02:59.8]} 3... Bc5 {[%clk 0:02:58.9]} 4.
c3 {[%clk 0:02:59.7]} 4... Nf6 {[%clk 0:02:58.6]} 5. d3 {[%clk 0:03:00.2]} 5...
O-O {[%clk 0:02:57.7]} 6. O-O {[%clk 0:03:00.8]} 6... d6 {[%clk 0:02:57.6]} 7.
Bb3 {[%clk 0:02:59.3]} 7... a6 {[%clk 0:02:57.9]} 8. h3 {[%clk 0:02:59.5]} 8...
Ba7 {[%clk 0:02:55.3]} 9. Re1 {[%clk 0:02:59.7]} 9... Be6 {[%clk 0:02:54.6]} 10.
Bc2 {[%clk 0:03:00.1]} 10... Ne7 {[%clk 0:02:54.2]} 11. Nbd2 {[%clk 0:02:59.7]}
11... Ng6 {[%clk 0:02:54.2]} 12. Nf1 {[%clk 0:03:00.2]} 12... Re8 {[%clk
0:02:52]} 13. Ng3 {[%clk 0:02:58.5]} 13... d5 {[%clk 0:02:52.3]} 14. Qe2 {[%clk
0:02:42.6]} 14... Qd6 {[%clk 0:02:46.1]} 15. Bg5 {[%clk 0:02:36]} 15... Nd7
{[%clk 0:02:45.1]} 16. Rad1 {[%clk 0:02:35]} 16... Nf4 {[%clk 0:02:29.7]} 17.
Qf1 {[%clk 0:02:19.7]} 17... f6 {[%clk 0:01:49.3]} 18. Bxf4 {[%clk 0:02:18.2]}
18... exf4 {[%clk 0:01:50.2]} 19. Ne2 {[%clk 0:02:16.6]} 19... Ne5 {[%clk
0:01:36.7]} 20. Nfd4 {[%clk 0:02:15.9]} 20... f3 {[%clk 0:01:36.6]} 21. Nxf3
{[%clk 0:02:03.1]} 21... Nxf3+ {[%clk 0:01:36]} 22. gxf3 {[%clk 0:02:03.1]}
22... Rad8 {[%clk 0:01:26.5]} 23. Qg2 {[%clk 0:01:55.3]} 23... Kh8 {[%clk
0:01:01.2]} 24. d4 {[%clk 0:01:54.4]} 24... dxe4 {[%clk 0:00:58.5]} 25. fxe4
{[%clk 0:01:53.7]} 25... Bxa2 {[%clk 0:00:58.9]} 26. b3 {[%clk 0:01:50.3]} 26...
Qa3 {[%clk 0:00:58.2]} 27. Nc1 {[%clk 0:01:31]} 27... Qb2 {[%clk 0:00:52.3]} 28.
Re2 {[%clk 0:01:30.9]} 28... Bb1 {[%clk 0:00:49.2]} 29. Bd3 {[%clk 0:01:28.2]}
29... Qa1 {[%clk 0:00:44.1]} 30. Na2 {[%clk 0:01:19.8]} 30... Bxd3 {[%clk
0:00:17.6]} 31. Rxa1 {[%clk 0:01:19.5]} 31... Bxe2 {[%clk 0:00:18.5]} 32. Re1
{[%clk 0:01:18.6]} 32... Bd3 {[%clk 0:00:17.7]} 33. Nb4 {[%clk 0:01:14.4]} 33...
Bb5 {[%clk 0:00:17.3]} 34. Nd5 {[%clk 0:01:09.5]} 34... Rd7 {[%clk 0:00:15.9]}
35. Re3 {[%clk 0:01:06]} 35... Bc6 {[%clk 0:00:15.2]} 36. Nf4 {[%clk 0:01:04]}
36... Rde7 {[%clk 0:00:14.2]} 37. Qg4 {[%clk 0:00:56.7]} 37... Bxe4 {[%clk
0:00:13.4]} 38. Nh5 {[%clk 0:00:48.7]} 38... f5 {[%clk 0:00:10.7]} 39. Qg5
{[%clk 0:00:47.8]} 39... c5 {[%clk 0:00:10.5]} 40. d5 {[%clk 0:00:44.8]} 40...
c4 {[%clk 0:00:09.8]} 41. d6 {[%clk 0:00:45.3]} 41... Rf7 {[%clk 0:00:08.1]} 42.
Rg3 {[%clk 0:00:40]} 42... cxb3 {[%clk 0:00:06.2]} 43. Qd2 {[%clk 0:00:29.7]}
43... f4 {[%clk 0:00:05.6]} 44. Nxf4 {[%clk 0:00:24.7]} 44... b2 {[%clk
0:00:04.6]} 45. Qxb2 {[%clk 0:00:17.1]} 45... Rxf4 {[%clk 0:00:04.7]} 46. d7
{[%clk 0:00:08.9]} 46... Ref8 {[%clk 0:00:03.7]} 47. Re3 {[%clk 0:00:08.6]}
47... Bxe3 {[%clk 0:00:03.7]} 48. fxe3 {[%clk 0:00:09.5]} 48... Rf1+ {[%clk
0:00:04.2]} 49. Kh2 {[%clk 0:00:10]} 49... R1f2+ {[%clk 0:00:04.4]} 50. Qxf2
{[%clk 0:00:10]} 50... Rxf2+ {[%clk 0:00:05.3]} 51. Kg3 {[%clk 0:00:10.9]} 51...
Rd2 {[%clk 0:00:06.1]} 0-1

[Event "*** Titled Tuesday Blitz"]
[Site "Chess.com"]
[Date "2020.03.03"]
[Round "1"]
[White "Arystanner"]
[Black "MathiasWomacka"]
[Result "1/2-1/2"]
[WhiteElo "2737"]
[BlackElo "2399"]
[TimeControl "180+1"]
[EndTime "13:08:06 PST"]
[Termination "Game drawn by repetition"]

1. d4 {[%clk 0:02:59.2]} 1... Nf6 {[%clk 0:02:56.6]} 2. Bf4 {[%clk 0:02:59.3]}
2... c5 {[%clk 0:02:54.4]} 3. c3 {[%clk 0:02:57.1]} 3... e6 {[%clk 0:02:53]} 4.
Nd2 {[%clk 0:02:55]} 4... cxd4 {[%clk 0:02:48.7]} 5. cxd4 {[%clk 0:02:54.7]}
5... Nc6 {[%clk 0:02:45.6]} 6. e3 {[%clk 0:02:53.4]} 6... d5 {[%clk 0:02:45.5]}
7. Ngf3 {[%clk 0:02:49.8]} 7... Bd6 {[%clk 0:02:35.4]} 8. Bxd6 {[%clk
0:02:49.8]} 8... Qxd6 {[%clk 0:02:34.9]} 9. Bb5 {[%clk 0:02:50.7]} 9... O-O
{[%clk 0:02:34]} 10. O-O {[%clk 0:02:49.1]} 10... Bd7 {[%clk 0:02:32.2]} 11. Rc1
{[%clk 0:02:43.3]} 11... Nb4 {[%clk 0:02:22.1]} 12. Bxd7 {[%clk 0:02:36.6]}
12... Nxd7 {[%clk 0:02:23]} 13. a3 {[%clk 0:02:33.7]} 13... Nc6 {[%clk
0:02:17.8]} 14. b4 {[%clk 0:02:30.2]} 14... Rfc8 {[%clk 0:02:12.5]} 15. Nb3
{[%clk 0:02:30.5]} 15... a5 {[%clk 0:01:49.8]} 16. b5 {[%clk 0:02:13.5]} 16...
Ne7 {[%clk 0:01:48.9]} 17. a4 {[%clk 0:02:09.1]} 17... Qb4 {[%clk 0:01:45.9]}
18. Qd3 {[%clk 0:01:57.4]} 18... Qxa4 {[%clk 0:01:38.7]} 19. Nc5 {[%clk
0:01:48]} 19... Nxc5 {[%clk 0:01:38.6]} 20. dxc5 {[%clk 0:01:48.6]} 20... Qe4
{[%clk 0:01:30.6]} 21. Qxe4 {[%clk 0:01:43.8]} 21... dxe4 {[%clk 0:01:31.5]} 22.
Ng5 {[%clk 0:01:44.1]} 22... a4 {[%clk 0:01:13.1]} 23. Nxe4 {[%clk 0:01:44.4]}
23... a3 {[%clk 0:01:12.6]} 24. Nd6 {[%clk 0:01:31.8]} 24... Rc7 {[%clk
0:01:12.6]} 25. Rc2 {[%clk 0:01:15.7]} 25... Nd5 {[%clk 0:01:01.5]} 26. Ra1
{[%clk 0:01:03.3]} 26... Kf8 {[%clk 0:00:43.7]} 27. Rca2 {[%clk 0:00:58.6]}
27... Rxc5 {[%clk 0:00:40]} 28. g3 {[%clk 0:00:39]} 28... Ke7 {[%clk 0:00:39.5]}
29. Ne4 {[%clk 0:00:36]} 29... Rxb5 {[%clk 0:00:39.6]} 30. Rxa3 {[%clk
0:00:36.6]} 30... Rxa3 {[%clk 0:00:38.8]} 31. Rxa3 {[%clk 0:00:36.9]} 31... Rb2
{[%clk 0:00:33.9]} 32. Nc5 {[%clk 0:00:34.6]} 32... e5 {[%clk 0:00:19.3]} 33.
Ra7 {[%clk 0:00:32]} 33... Kd6 {[%clk 0:00:16.3]} 34. Rxb7 {[%clk 0:00:32.3]}
34... Rxb7 {[%clk 0:00:15.1]} 35. Nxb7+ {[%clk 0:00:33.2]} 35... Ke6 {[%clk
0:00:13.9]} 36. Nc5+ {[%clk 0:00:32.8]} 36... Kd6 {[%clk 0:00:12.4]} 37. Ne4+
{[%clk 0:00:32.3]} 37... Ke7 {[%clk 0:00:12.3]} 38. g4 {[%clk 0:00:31.9]} 38...
f6 {[%clk 0:00:11.8]} 39. Kg2 {[%clk 0:00:31.6]} 39... g6 {[%clk 0:00:12]} 40.
h4 {[%clk 0:00:30.5]} 40... Ke6 {[%clk 0:00:11.8]} 41. Nc5+ {[%clk 0:00:28.6]}
41... Ke7 {[%clk 0:00:11.3]} 42. Kg3 {[%clk 0:00:28]} 42... Nc3 {[%clk
0:00:10.5]} 43. f4 {[%clk 0:00:26.3]} 43... Kd6 {[%clk 0:00:09.4]} 44. Nd3
{[%clk 0:00:23.6]} 44... Kd5 {[%clk 0:00:08.6]} 45. fxe5 {[%clk 0:00:16.7]}
45... fxe5 {[%clk 0:00:09.5]} 46. Nf2 {[%clk 0:00:15.9]} 46... Ne4+ {[%clk
0:00:08.2]} 47. Nxe4 {[%clk 0:00:16.5]} 47... Kxe4 {[%clk 0:00:09.1]} 48. Kf2
{[%clk 0:00:17.1]} 48... h5 {[%clk 0:00:06.8]} 49. gxh5 {[%clk 0:00:16.5]} 49...
gxh5 {[%clk 0:00:06.6]} 50. Ke2 {[%clk 0:00:17.2]} 50... Kf5 {[%clk 0:00:06]}
51. Kf3 {[%clk 0:00:17.5]} 51... e4+ {[%clk 0:00:06.2]} 52. Kg3 {[%clk
0:00:17.6]} 52... Ke5 {[%clk 0:00:06.7]} 53. Kh3 {[%clk 0:00:17.4]} 53... Kf5
{[%clk 0:00:07.2]} 54. Kg3 {[%clk 0:00:17.9]} 54... Ke5 {[%clk 0:00:07.7]} 55.
Kh3 {[%clk 0:00:18.6]} 55... Kf5 {[%clk 0:00:08.6]} 56. Kg3 {[%clk 0:00:19.2]}
1/2-1/2